bitfinex-derivatives/quotes_BTCF0:USTF0_20210111
["timestamp","ask_amount","ask_price","bid_price","bid_amount"]
[1610351662118,0.00035886,34116.0,34108.0,0.13632608]
[1610351662519,0.00035886,34136.0,34109.0,0.0875]
[1610351662920,0.298,34153.0,34109.0,0.0875]
[1610351663121,0.00035881,34135.0,34109.0,0.0875]
[1610351663321,0.00035881,34136.0,34129.0,0.13632608]
[1610351663721,0.00035879,34134.0,34109.0,0.0875]
[1610351663920,0.00035879,34149.0,34109.0,0.0875]
[1610351664122,0.00035879,34133.0,34109.0,0.0875]
[1610351664522,0.00035876,34148.0,34109.0,0.0875]
[1610351664722,0.00035876,34132.0,34109.0,0.0875]
[1610351664922,3.75362659,34138.0,34109.0,0.0875]
[1610351665221,0.00035876,34131.0,34109.0,0.0875]
[1610351665421,0.13632608,34132.0,34120.0,1.0]
[1610351665821,0.00035879,34130.0,34120.0,1.0]
[1610351666022,0.00035879,34131.0,34120.0,1.0]
[1610351666221,0.00035879,34129.0,34120.0,1.0]
[1610351666421,0.00035879,34129.0,34120.0,0.70616642]
[1610351666624,0.00035879,34129.0,34116.0,0.0891]
[1610351666625,1.0,34121.0,34116.0,0.0891]
[1610351667422,0.955,34121.0,34112.0,0.01992608]
[1610351667622,1.0,34117.0,34112.0,0.01992608]
[1610351669327,0.13632608,34113.0,34112.0,0.01992608]
[1610351669527,0.21379608,34113.0,34109.0,0.0875]
[1610351669728,1.21379608,34113.0,34109.0,0.0875]
[1610351670728,1.21379608,34113.0,34103.0,3.3099]
[1610351670928,1.50766982,34113.0,34103.0,3.3099]
[1610351671328,0.13632608,34104.0,34103.0,3.3099]
[1610351671527,0.23657608,34104.0,34103.0,3.3099]
[1610351672929,0.2369351,34104.0,34103.0,3.3969]
[1610351673129,0.23657608,34104.0,34103.0,3.3969]
[1610351673330,0.03679608,34113.0,34103.0,0.087]
[1610351673529,0.08823,34104.0,34103.0,0.087]
[1610351674929,0.20697879,34101.0,34098.0,0.089]
[1610351675329,0.13307879,34101.0,34100.0,0.13632608]
[1610351676933,0.13307879,34101.0,34100.0,0.04732608]
[1610351677131,0.08823,34104.0,34100.0,0.04732608]
[1610351677331,0.06143,34104.0,34101.0,0.0868]
[1610351678033,0.05665608,34108.0,34101.0,0.0868]
[1610351679336,0.13632608,34102.0,34101.0,0.0868]
[1610351679538,0.20586608,34102.0,34101.0,0.0868]
[1610351681436,0.06954,34102.0,34101.0,0.0868]
[1610351682040,0.04409,34102.0,34101.0,0.0868]
[1610351682239,0.00919,34102.0,34101.0,0.0868]
[1610351682437,0.00569,34102.0,34101.0,0.0868]
[1610351682637,0.09311,34102.0,34101.0,0.0868]
[1610351683037,0.05421,34102.0,34101.0,0.0868]
[1610351683438,0.05421,34102.0,34098.0,0.01885608]
[1610351683639,3.65611774,34109.0,34101.0,1.0]
[1610351683841,0.13632608,34126.0,34101.0,1.0]
[1610351684241,0.0003588,34125.0,34101.0,1.0]
[1610351684442,0.9937,34133.0,34102.0,0.0868]
[1610351684644,0.8578,34133.0,34102.0,0.0868]
[1610351684846,0.00035879,34132.0,34102.0,0.0868]
[1610351685444,0.00035879,34135.0,34131.0,0.13632608]
[1610351686444,0.20683365,34118.0,34116.0,0.0883]
[1610351687346,0.20683365,34118.0,34117.0,0.13632608]
[1610351687546,0.20683365,34118.0,34117.0,0.75062608]
[1610351687745,3.83984313,34140.0,34117.0,0.75062608]
[1610351688345,0.00035869,34139.0,34117.0,0.75062608]
[1610351688846,3.67910966,34127.0,34117.0,0.75062608]
[1610351689246,0.00035867,34126.0,34117.0,0.75062608]
[1610351689446,0.00035867,34126.0,34125.0,0.13632608]
[1610351689648,3.56310966,34127.0,34125.0,0.13632608]
[1610351690446,3.27966833,34127.0,34125.0,0.13632608]
[1610351690648,2.87926833,34127.0,34125.0,0.13632608]
[1610351690849,2.02796833,34127.0,34117.0,0.6143]
[1610351691048,3.84568505,34159.0,34117.0,0.6143]
[1610351691451,3.62708505,34159.0,34158.0,0.13632608]
[1610351691650,3.57488505,34159.0,34158.0,0.13632608]
[1610351691851,4.00591525,34176.0,34158.0,0.13632608]
[1610351692254,0.00035843,34175.0,34158.0,0.13632608]
[1610351692452,0.03517,34175.0,34158.0,0.13632608]
[1610351692652,0.03517,34175.0,34158.0,0.22372608]
[1610351692852,0.01657,34175.0,34158.0,0.22372608]
[1610351693053,0.26914002,34184.0,34174.0,1.0]
[1610351693253,1.0,34192.0,34174.0,1.0]
[1610351693452,0.9909,34192.0,34188.0,0.13632608]
[1610351693653,0.7137,34192.0,34188.0,0.13632608]
[1610351693852,4.02089832,34194.0,34188.0,0.13632608]
[1610351694055,0.2822,34241.0,34188.0,0.13632608]
[1610351694056,4.03377113,34215.0,34188.0,0.13632608]
[1610351694654,3.99848152,34230.0,34189.0,0.0876]
[1610351695457,4.078,34239.0,34229.0,0.13632608]
[1610351695657,4.2064018,34269.0,34229.0,0.13632608]
[1610351696058,0.00035786,34268.0,34229.0,0.13632608]
[1610351696658,4.36443125,34300.0,34230.0,0.0881]
[1610351696856,0.00035772,34267.0,34234.0,4.3885]
[1610351697056,0.00035767,34292.0,34234.0,4.3885]
[1610351697459,4.36443125,34300.0,34269.0,0.13632608]
[1610351697659,0.00035767,34291.0,34269.0,0.13632608]
[1610351697860,0.15626822,34262.0,34230.0,0.3685]
[1610351698262,1.0,34273.0,34256.0,1.0]
[1610351698659,1.0,34273.0,34257.0,0.0868]
[1610351699360,0.13632608,34258.0,34257.0,0.0868]
[1610351700066,1.13632608,34258.0,34257.0,0.0868]
[1610351701062,1.13302608,34258.0,34257.0,0.0868]
[1610351701262,1.0,34258.0,34257.0,0.0868]
[1610351702063,0.13632608,34269.0,34257.0,0.0868]
[1610351703462,0.13632608,34273.0,34264.0,0.13632608]
[1610351704265,0.13632608,34273.0,34259.0,0.088]
[1610351705465,0.13632608,34260.0,34259.0,0.088]
[1610351705665,0.13632608,34260.0,34257.0,0.0868]
[1610351706266,1.0,34258.0,34257.0,0.0868]
[1610351706667,1.0,34258.0,34247.0,0.0867]
[1610351707066,0.9652,34258.0,34247.0,0.0867]
[1610351707267,0.13632608,34260.0,34245.0,3.5284]
[1610351707468,0.29245568,34279.0,34250.0,0.13632608]
[1610351708269,3.7928,34285.0,34250.0,0.13632608]
[1610351709371,0.13632608,34273.0,34272.0,0.13632608]
[1610351709571,3.7928,34285.0,34272.0,0.13632608]
[1610351709770,0.1556,34351.0,34272.0,0.13632608]
[1610351709972,0.29246952,34277.0,34272.0,0.13632608]
[1610351710373,0.26226952,34277.0,34272.0,0.13632608]
[1610351710571,6.952e-05,34277.0,34272.0,0.13632608]
[1610351710973,0.1556,34351.0,34272.0,0.13632608]
[1610351711171,0.9336,34352.0,34272.0,0.13632608]
[1610351711372,0.13632608,34357.0,34340.0,0.13632608]
[1610351711571,1.0,34399.0,34340.0,0.13632608]
[1610351711972,0.02148405,34398.0,34340.0,0.13632608]
[1610351712372,0.00035693,34398.0,34340.0,0.13632608]
[1610351712571,0.0003568,34397.0,34340.0,0.13632608]
[1610351713074,0.0003568,34398.0,34340.0,0.13632608]
[1610351713374,1.0,34341.0,34317.0,1.0]
[1610351715075,0.5263,34341.0,34317.0,1.0]
[1610351715474,6.13632608,34318.0,34295.0,3.3868]
[1610351716273,6.0,34318.0,34295.0,3.3868]
[1610351717478,0.13632608,34348.0,34317.0,1.13632608]
[1610351717678,1.0,34349.0,34317.0,1.13632608]
[1610351718782,0.29212102,34318.0,34317.0,1.13632608]
[1610351719682,0.13632608,34348.0,34317.0,1.13632608]
[1610351721081,0.13632608,34348.0,34317.0,1.0]
[1610351721483,1.0,34374.0,34315.0,0.015572]
[1610351721683,0.29185809,34349.0,34315.0,0.015572]
[1610351721882,0.29185809,34349.0,34316.0,0.0863]
[1610351722083,0.09585809,34349.0,34348.0,0.13632608]
[1610351722482,1.0,34374.0,34348.0,0.13632608]
[1610351723486,1.0,34425.0,34348.0,0.13632608]
[1610351724083,0.13632608,34377.0,34373.0,0.13632608]
[1610351724283,1.0,34425.0,34373.0,0.13632608]
[1610351725487,0.0869,34446.0,34373.0,0.13632608]
[1610351725988,0.13632608,34379.0,34367.0,0.0864]
[1610351726184,0.0869,34446.0,34367.0,0.0864]
[1610351727387,1.0,34398.0,34381.0,1.0]
[1610351727788,0.4299,34398.0,34382.0,0.2928]
[1610351727993,0.4299,34398.0,34397.0,0.13632608]
[1610351728195,0.29131176,34413.0,34397.0,0.13632608]
[1610351728413,0.21661176,34413.0,34397.0,0.13632608]
[1610351728602,0.0869,34446.0,34397.0,0.13632608]
[1610351729288,1.0,34471.0,34397.0,0.13632608]
[1610351729990,0.13632608,34444.0,34442.0,0.13632608]
[1610351730189,0.4735,34533.0,34393.0,0.0863]
[1610351730190,1.0,34494.0,34393.0,0.0863]
[1610351730789,0.086,34493.0,34393.0,0.0863]
[1610351731990,0.086,34493.0,34383.0,0.0861]
[1610351732191,1.0,34464.0,34383.0,0.0861]
[1610351732993,0.29116998,34430.0,34421.0,3.9407]
[1610351733394,0.10096998,34430.0,34421.0,3.9407]
[1610351733595,1.0,34464.0,34421.0,3.9407]
[1610351733992,1.0,34464.0,34452.0,0.13632608]
[1610351734194,5.0,34469.0,34452.0,0.13632608]
[1610351734393,5.0,34469.0,34435.0,1.0]
[1610351735993,5.0,34469.0,34439.0,0.13632608]
[1610351736193,1.0,34436.0,34421.0,3.9407]
[1610351736993,0.7824,34436.0,34421.0,4.0289]
[1610351737194,0.682,34436.0,34421.0,4.0289]
[1610351737393,3.9085,34476.0,34421.0,4.0289]
[1610351737794,0.29120424,34426.0,34421.0,0.0882]
[1610351737994,0.29120424,34426.0,34425.0,0.13632608]
[1610351738195,0.08410424,34426.0,34425.0,0.13632608]
[1610351738395,0.13632608,34453.0,34425.0,0.13632608]
[1610351738998,0.13632608,34453.0,34381.0,1.0]
[1610351739397,0.0877,34507.0,34381.0,1.0]
[1610351739600,0.0877,34507.0,34399.0,0.0883]
[1610351739998,0.13632608,34446.0,34437.0,0.13632608]
[1610351740997,0.13632608,34446.0,34416.0,0.2695]
[1610351741601,0.42736422,34446.0,34416.0,0.2695]
[1610351742001,0.42736422,34446.0,34445.0,0.13632608]
[1610351742400,4.5123,34492.0,34445.0,0.13632608]
[1610351742601,4.5123,34492.0,34437.0,0.086]
[1610351742801,4.5123,34492.0,34432.0,4.4989]
[1610351744004,0.13632608,34455.0,34453.0,0.13632608]
[1610351744405,0.13632608,34455.0,34432.0,4.4989]
[1610351745006,0.13632608,34455.0,34377.0,5.9993]
[1610351745206,0.13632608,34455.0,34378.0,0.282]
[1610351745405,0.13632608,34455.0,34396.0,0.286]
[1610351746108,0.0877,34489.0,34396.0,0.286]
[1610351746307,1.0,34498.0,34396.0,0.286]
[1610351747408,4.0618,34464.0,34405.0,4.3324]
[1610351747611,0.29109137,34439.0,34405.0,4.3324]
[1610351748009,0.29109137,34439.0,34410.0,0.13632608]
[1610351748211,4.0618,34464.0,34410.0,0.13632608]
[1610351748911,4.0618,34464.0,34411.0,0.0881]
[1610351749512,4.2204,34465.0,34411.0,0.0881]
[1610351749710,0.4735,34589.0,34411.0,0.0881]
[1610351749711,1.0,34528.0,34411.0,0.0881]
[1610351750111,0.13632608,34470.0,34412.0,0.0002]
[1610351750316,0.29099976,34450.0,34412.0,0.0002]
[1610351750512,0.28319976,34450.0,34411.0,0.0881]
[1610351750713,0.28319976,34450.0,34396.0,0.286]
[1610351750714,0.22269976,34450.0,34412.0,0.0002]
[1610351750911,0.00549976,34450.0,34412.0,0.0002]
[1610351751114,0.13632608,34470.0,34417.0,4.494]
[1610351751313,3.291,34503.0,34418.0,0.0865]
[1610351751514,3.291,34503.0,34419.0,0.2728]
[1610351751714,8.1971,34554.0,34419.0,0.2728]
[1610351751715,1.0,34488.0,34471.0,1.0]
[1610351752123,1.0,34488.0,34487.0,0.13632608]
[1610351752320,0.4815,34488.0,34487.0,0.13632608]
[1610351752518,3.6876,34535.0,34487.0,0.13632608]
[1610351753721,3.6876,34535.0,34488.0,0.088]
[1610351754120,0.13632608,34515.0,34513.0,0.13632608]
[1610351754322,0.15433793,34490.0,34488.0,0.088]
[1610351754523,0.00893793,34490.0,34488.0,0.088]
[1610351754725,3.6876,34535.0,34488.0,0.088]
[1610351756025,0.13632608,34526.0,34516.0,0.13632608]
[1610351756425,0.09979,34562.0,34516.0,0.13632608]
[1610351756625,0.09979,34562.0,34516.0,0.22232608]
[1610351757229,0.09979,34562.0,34517.0,0.0856]
[1610351758129,0.13632608,34525.0,34517.0,0.0856]
[1610351758528,0.09979,34562.0,34517.0,0.0856]
[1610351760131,0.13632608,34528.0,34520.0,0.13632608]
[1610351760329,0.13632608,34528.0,34517.0,0.0856]
[1610351760832,0.13632608,34528.0,34517.0,1.0856]
[1610351761732,1.0,34534.0,34517.0,0.795882]
[1610351762133,0.15402417,34527.0,34516.0,0.086]
[1610351762337,0.15402417,34527.0,34507.0,0.0881]
[1610351763136,0.20980608,34539.0,34507.0,0.0881]
[1610351763336,0.20980608,34539.0,34507.0,0.18832]
[1610351763536,0.20360608,34539.0,34507.0,0.18832]
[1610351766137,0.13632608,34534.0,34532.0,0.13632608]
[1610351766538,0.13632608,34534.0,34515.0,0.0861]
[1610351767438,0.13632608,34534.0,34507.0,0.18832]
[1610351768039,1.0,34512.0,34507.0,0.18832]
[1610351768639,0.13632608,34508.0,34507.0,0.18832]
[1610351768839,0.13632608,34508.0,34507.0,0.10022]
[1610351769040,0.13632608,34508.0,34503.0,0.0871]
[1610351769439,1.0,34512.0,34503.0,0.0871]
[1610351769639,0.9568,34512.0,34503.0,0.0871]
[1610351769839,0.24710994,34508.0,34503.0,0.0871]
[1610351770039,0.08970994,34508.0,34503.0,0.0871]
[1610351770241,0.08710994,34508.0,34503.0,0.0871]
[1610351770740,0.08550994,34508.0,34501.0,4.93364808]
[1610351770939,0.0962,34527.0,34501.0,4.93364808]
[1610351771140,0.0452,34527.0,34507.0,6.0]
[1610351771339,0.0452,34527.0,34508.0,0.0873]
[1610351772339,3.3021,34535.0,34508.0,0.0873]
[1610351772740,0.13632608,34519.0,34508.0,0.0873]
[1610351773140,3.3021,34535.0,34508.0,0.0873]
[1610351773340,3.8526,34567.0,34508.0,0.6516]
[1610351774742,0.13632608,34525.0,34518.0,0.13632608]
[1610351774941,0.13632608,34525.0,34519.0,0.0881]
[1610351775146,0.08559,34540.0,34519.0,0.0881]
[1610351775744,0.05039,34540.0,34519.0,0.0881]
[1610351776344,9e-05,34540.0,34519.0,0.0881]
[1610351776744,9e-05,34540.0,34539.0,0.13632608]
[1610351776945,0.13632608,34555.0,34539.0,0.13632608]
[1610351777145,3.8526,34567.0,34539.0,0.13632608]
[1610351777345,4.9846,34575.0,34531.0,0.04472276]
[1610351777545,0.1556,34622.0,34531.0,0.04472276]
[1610351778344,4.1768,34610.0,34531.0,0.04472276]
[1610351778546,4.26595,34610.0,34531.0,0.04472276]
[1610351778947,4.26595,34610.0,34567.0,0.13632608]
[1610351779950,0.08915,34610.0,34567.0,4.65262608]
[1610351780350,0.08915,34610.0,34568.0,0.0874]
[1610351780950,0.08915,34610.0,34606.0,0.13632608]
[1610351781149,0.08915,34610.0,34568.0,0.0874]
[1610351781352,0.28970946,34604.0,34568.0,0.0874]
[1610351781851,0.08915,34610.0,34568.0,0.0874]
[1610351782052,0.08915,34610.0,34568.0,0.16402]
[1610351782252,0.3179,34626.0,34568.0,0.16402]
[1610351782453,3.5253,34649.0,34568.0,0.16402]
[1610351783056,1.0,34618.0,34601.0,1.0]
[1610351783254,1.0726,34618.0,34601.0,1.0]
[1610351784857,1.0726,34618.0,34617.0,0.13632608]
[1610351785257,3.5253,34649.0,34617.0,0.13632608]
[1610351785662,3.5253,34649.0,34598.0,0.07652]
[1610351785859,3.61326,34649.0,34598.0,0.07652]
[1610351786059,3.08082221,34649.0,34598.0,0.07652]
[1610351786259,0.08796,34649.0,34598.0,0.07652]
[1610351786659,0.08796,34649.0,34594.0,0.0869]
[1610351786859,0.08796,34649.0,34618.0,0.13632608]
[1610351787061,1.0,34632.0,34615.0,1.0]
[1610351787259,1.09369,34632.0,34615.0,1.0]
[1610351787660,0.28959083,34618.0,34615.0,1.0]
[1610351788061,0.38398083,34618.0,34615.0,1.0]
[1610351788264,0.23888083,34618.0,34615.0,1.0]
[1610351788562,0.22378083,34618.0,34615.0,1.0]
[1610351788962,0.22378083,34618.0,34617.0,0.12813608]
[1610351789163,0.22378083,34618.0,34617.0,1.12813608]
[1610351789562,0.15128083,34618.0,34617.0,1.12813608]
[1610351789762,0.03838083,34618.0,34617.0,1.12813608]
[1610351789963,0.09369,34632.0,34617.0,1.12813608]
[1610351790864,0.09369,34632.0,34623.0,0.13632608]
[1610351791268,0.09369,34632.0,34610.0,0.0876]
[1610351791664,0.09369,34632.0,34598.0,4.5605]
[1610351792266,0.13632608,34634.0,34598.0,4.5605]
[1610351792466,0.09338,34632.0,34598.0,4.5605]
[1610351792868,0.09338,34632.0,34609.0,0.13632608]
[1610351794067,0.09338,34632.0,34598.0,4.5605]
[1610351794469,0.09338,34632.0,34557.0,1.0]
[1610351794869,0.09338,34632.0,34605.0,0.13632608]
[1610351795068,0.09338,34632.0,34489.0,1.5]
[1610351795270,0.09338,34632.0,34554.0,1.0]
[1610351796271,0.28953877,34624.0,34554.0,1.0]
[1610351796471,0.38333877,34624.0,34585.0,0.2777]
[1610351796872,0.13632608,34587.0,34585.0,0.2777]
[1610351797071,1.23394608,34587.0,34585.0,0.2777]
[1610351798072,1.23394608,34587.0,34586.0,0.0861]
[1610351798273,1.23394608,34587.0,34585.0,0.2777]
[1610351798675,1.23394608,34587.0,34585.0,0.0947]
[1610351798874,1.23394608,34587.0,34562.0,0.8997]
[1610351799075,0.13632608,34563.0,34551.0,0.0875]
[1610351799276,0.13632608,34563.0,34540.0,0.0861]
[1610351799476,0.1166,34494.0,34463.0,1.0]
[1610351799676,0.13632608,34563.0,34474.0,0.0002]
[1610351799877,0.13632608,34563.0,34474.0,0.0729]
[1610351800578,0.13632608,34563.0,34475.0,0.0867]
[1610351800978,0.11344,34576.0,34522.0,0.13632608]
[1610351801179,0.11344,34576.0,34522.0,0.07137]
[1610351801578,1.0,34532.0,34522.0,0.07137]
[1610351802580,1.0,34532.0,34514.0,1.0]
[1610351802980,0.13632608,34515.0,34514.0,1.0]
[1610351803584,0.06642608,34515.0,34503.0,0.0871]
[1610351803786,0.07928,34535.0,34503.0,0.0871]
[1610351803986,0.07928,34535.0,34503.0,0.16285]
[1610351804984,0.13632608,34504.0,34503.0,0.16285]
[1610351805194,0.13632608,34504.0,34503.0,0.07575]
[1610351805389,0.087,34568.0,34503.0,0.07575]
[1610351805390,0.07097,34561.0,34503.0,0.07575]
[1610351805587,1.0,34520.0,34503.0,1.07575]
[1610351807086,0.13632608,34504.0,34503.0,1.07575]
[1610351807485,0.13632608,34504.0,34503.0,0.07575]
[1610351807686,0.13632608,34504.0,34408.0,1.0]
[1610351808085,0.13632608,34504.0,34461.0,3.5237]
[1610351808989,0.13632608,34482.0,34470.0,0.13632608]
[1610351809387,0.21784608,34482.0,34461.0,3.5237]
[1610351810388,0.21784608,34482.0,34462.0,0.0871]
[1610351810589,0.08152,34482.0,34462.0,0.0871]
[1610351810789,0.08152,34482.0,34461.0,3.32097]
[1610351810991,0.13632608,34488.0,34481.0,0.13632608]
[1610351811189,0.09687,34502.0,34481.0,0.23138608]
[1610351811591,0.09687,34502.0,34482.0,0.0866]
[1610351811990,0.11276,34510.0,34482.0,0.0866]
[1610351812593,0.06936,34510.0,34482.0,0.0866]
[1610351812791,1.0,34576.0,34482.0,0.0866]
[1610351812991,0.13632608,34520.0,34516.0,0.13632608]
[1610351813192,0.13632608,34520.0,34500.0,0.11099]
[1610351814194,0.21052608,34520.0,34487.0,0.0858]
[1610351814392,0.29044315,34516.0,34481.0,0.09506]
[1610351814592,0.29044315,34516.0,34441.0,0.088]
[1610351814791,0.21052608,34520.0,34441.0,0.088]
[1610351814992,0.13632608,34481.0,34476.0,0.13632608]
[1610351815392,0.13632608,34481.0,34461.0,0.0867]
[1610351815593,0.08627,34490.0,34461.0,0.063102]
[1610351816594,0.29070173,34486.0,34461.0,0.063102]
[1610351817194,0.13632608,34473.0,34466.0,0.13632608]
[1610351817595,1.0,34480.0,34466.0,0.13632608]
[1610351818194,0.7379,34480.0,34466.0,0.23001608]
[1610351818594,0.08627,34490.0,34466.0,0.23001608]
[1610351819195,0.08627,34490.0,34466.0,0.09369]
[1610351819797,4.6836,34517.0,34466.0,0.09369]
[1610351820196,0.29070601,34485.0,34466.0,0.09369]
[1610351821199,0.13632608,34467.0,34466.0,0.09369]
[1610351821599,0.13632608,34467.0,34455.0,3.6715]
[1610351822500,1.0,34458.0,34455.0,3.381315]
[1610351822701,1.29093012,34458.0,34441.0,1.088]
[1610351822902,1.29093012,34458.0,34441.0,1.0]
[1610351823100,1.39660012,34458.0,34449.0,0.13632608]
[1610351823303,1.39660012,34458.0,34441.0,1.0]
[1610351824601,0.10567,34458.0,34436.0,0.09488]
[1610351825200,0.13632608,34437.0,34436.0,0.09488]
[1610351825802,0.13632608,34437.0,34432.0,3.4479]
[1610351826202,0.13632608,34437.0,34419.0,0.0861]
[1610351826601,0.13632608,34437.0,34407.0,4.0028]
[1610351827001,0.13632608,34437.0,34406.0,0.087]
[1610351827203,0.08807,34440.0,34409.0,0.13632608]
[1610351827402,0.08807,34440.0,34409.0,0.24243608]
[1610351829105,0.08807,34440.0,34424.0,0.13632608]
[1610351829905,0.2912156,34425.0,34424.0,0.13632608]
[1610351830906,0.08807,34440.0,34424.0,0.13632608]
[1610351831108,0.08807,34440.0,34438.0,0.13632608]
[1610351831307,0.08807,34440.0,34417.0,0.07597]
[1610351831710,0.08807,34440.0,34378.0,0.0865]
[1610351831907,0.10923,34440.0,34357.0,0.0864]
[1610351832508,0.10923,34440.0,34333.0,0.0875]
[1610351832709,0.10923,34440.0,34359.0,0.0867]
[1610351832908,0.10923,34440.0,34347.0,0.0882]
[1610351833110,0.13632608,34390.0,34372.0,0.13632608]
[1610351834312,0.13632608,34390.0,34359.0,0.088]
[1610351834511,0.04902608,34390.0,34376.0,0.087]
[1610351834711,0.07345,34399.0,34383.0,4.154055]
[1610351834913,0.07345,34399.0,34379.0,0.10919]
[1610351835112,0.08302,34404.0,34398.0,0.13632608]
[1610351835713,0.02952,34404.0,34398.0,0.13632608]
[1610351836113,2e-05,34404.0,34398.0,0.13632608]
[1610351836315,0.29136456,34407.0,34398.0,0.13632608]
[1610351836514,0.27426456,34407.0,34398.0,0.13632608]
[1610351836715,0.19846456,34407.0,34398.0,0.13632608]
[1610351837115,0.33479064,34407.0,34402.0,0.13632608]
[1610351837517,4.6124,34419.0,34402.0,0.13632608]
[1610351838716,4.6124,34419.0,34402.0,0.21429608]
[1610351838916,4.6124,34419.0,34402.0,0.07797]
[1610351839116,0.13632608,34403.0,34402.0,0.07797]
[1610351839718,0.13632608,34403.0,34379.0,0.10919]
[1610351840121,0.13632608,34403.0,34372.0,0.07184]
[1610351840521,0.13632608,34403.0,34395.0,1.0]
[1610351841121,1.0,34412.0,34402.0,0.13632608]
[1610351841521,1.0,34412.0,34402.0,0.21967608]
[1610351841721,1.0,34412.0,34402.0,0.08335]
[1610351842623,0.088,34479.0,34398.0,1.0]
[1610351842624,1.0,34415.0,34398.0,1.0]
[1610351843121,0.13632608,34399.0,34398.0,1.0]
[1610351843321,0.13632608,34399.0,34398.0,0.70851909]
[1610351843723,0.13632608,34399.0,34393.0,0.0791]
[1610351844824,0.13632608,34399.0,34393.0,0.074497]
[1610351845126,0.13632608,34394.0,34393.0,0.074497]
[1610351845325,0.13632608,34394.0,34392.0,0.13632608]
[1610351845526,0.13632608,34394.0,34380.0,0.09281]
[1610351845926,0.13632608,34394.0,34372.0,0.15804]
[1610351847129,0.29142805,34400.0,34381.0,0.13632608]
[1610351847329,0.29142805,34400.0,34381.0,0.20685608]
[1610351847732,3.4448,34413.0,34381.0,0.20685608]
[1610351848130,3.3559,34413.0,34381.0,0.20685608]
[1610351848332,0.10811,34415.0,34381.0,0.20685608]
[1610351848631,4.6882,34436.0,34381.0,0.20685608]
[1610351849132,0.13632608,34408.0,34405.0,0.13632608]
[1610351849733,0.13632608,34408.0,34407.0,1.0]
[1610351850337,0.07561,34421.0,34407.0,1.0]
[1610351851133,0.07561,34421.0,34414.0,0.13632608]
[1610351852335,0.29120377,34426.0,34414.0,0.13632608]
[1610351852736,4.6882,34436.0,34414.0,0.13632608]
[1610351853135,4.6882,34436.0,34430.0,0.13632608]
[1610351853335,3.4742,34449.0,34430.0,0.13632608]
[1610351853736,1.0,34461.0,34435.0,1.0]
[1610351853937,0.8067,34461.0,34435.0,1.0]
[1610351854135,0.474,34461.0,34435.0,1.0]
[1610351854336,3.8527,34475.0,34460.0,1.0]
[1610351854735,3.7154,34475.0,34460.0,1.0]
[1610351854935,1.0,34486.0,34460.0,0.70892443]
[1610351855137,1.0,34486.0,34485.0,0.13632608]
[1610351855336,4.0123,34499.0,34443.0,0.09431]
[1610351855537,4.0123,34499.0,34443.0,0.18241]
[1610351857237,3.88522608,34499.0,34487.0,0.13632608]
[1610351857438,4.88522608,34499.0,34482.0,1.0]
[1610351857637,4.99123608,34499.0,34482.0,1.0]
[1610351858741,4.99123608,34499.0,34482.0,0.7232]
[1610351859142,3.99123608,34499.0,34409.0,0.0864]
[1610351859342,0.13632608,34483.0,34409.0,0.0864]
[1610351859547,0.20842608,34483.0,34426.0,0.2791]
[1610351861345,0.13632608,34440.0,34426.0,0.2791]
[1610351862146,0.0694,34442.0,34426.0,0.2791]
[1610351862945,0.0694,34442.0,34425.0,0.075132]
[1610351863148,0.0694,34442.0,34414.0,0.13632608]
[1610351863149,0.0694,34442.0,34440.0,1.0]
[1610351863346,1.0,34457.0,34440.0,1.11073]
[1610351863550,0.29105305,34444.0,34440.0,1.11073]
[1610351863746,0.36805305,34444.0,34440.0,1.11073]
[1610351864147,0.077,34444.0,34423.0,5.0]
[1610351864548,6.0,34441.0,34381.0,1.0]
[1610351864951,6.0,34441.0,34381.0,0.93025]
[1610351865149,0.077,34444.0,34375.0,0.1757]
[1610351865352,0.13632608,34402.0,34399.0,0.13632608]
[1610351866151,0.13632608,34402.0,34383.0,0.0864]
[1610351866852,0.13632608,34402.0,34363.0,0.0877]
[1610351867054,0.13632608,34402.0,34338.0,0.971397]
[1610351867254,0.07875,34408.0,34326.0,1.0]
[1610351867454,3.8885,34399.0,34345.0,4.1372]
[1610351867655,4.00021,34399.0,34345.0,4.1372]
[1610351868054,4.00021,34399.0,34346.0,0.0002]
[1610351868257,4.00021,34399.0,34346.0,0.10026]
[1610351868756,4.00021,34399.0,34347.0,0.0002]
[1610351868956,4.00021,34399.0,34348.0,0.0861]
[1610351869357,4.00021,34399.0,34398.0,0.13632608]
[1610351872260,0.11171,34399.0,34398.0,0.13632608]
[1610351872661,0.07875,34408.0,34398.0,0.13632608]
[1610351872861,0.09399,34416.0,34398.0,0.13632608]
[1610351873060,4.1292,34420.0,34398.0,0.13632608]
[1610351873260,4.1292,34420.0,34419.0,0.13632608]
[1610351873862,4.0758,34436.0,34419.0,0.13632608]
[1610351874262,4.0758,34436.0,34392.0,0.0879]
[1610351874462,0.29115895,34431.0,34392.0,0.0879]
[1610351874863,4.15913,34436.0,34392.0,0.0879]
[1610351875264,4.15913,34436.0,34409.0,0.13632608]
[1610351876466,4.15913,34436.0,34392.0,0.0879]
[1610351876665,4.15913,34436.0,34388.0,0.29]
[1610351877265,0.13632608,34408.0,34407.0,0.13632608]
[1610351877467,0.13632608,34408.0,34407.0,0.22292608]
[1610351877666,0.22028608,34408.0,34407.0,0.22292608]
[1610351877868,0.08396,34408.0,34407.0,0.22292608]
[1610351879371,0.08396,34408.0,34407.0,0.13632608]
[1610351881675,0.08396,34408.0,34388.0,0.13567508]
[1610351882678,0.13632608,34409.0,34388.0,0.13567508]
[1610351882877,0.09362,34408.0,34388.0,0.13567508]
[1610351884282,0.29139347,34404.0,34388.0,0.13567508]
[1610351884980,0.09362,34408.0,34388.0,0.13567508]
[1610351885282,0.13632608,34399.0,34395.0,1.0]
[1610351885579,0.22778608,34399.0,34395.0,0.709236]
[1610351885879,0.22778608,34399.0,34388.0,0.13567508]
[1610351887280,0.09146,34399.0,34388.0,0.27200116]
[1610351887881,0.01954797,34385.0,34340.0,1.0]